bitfinex/quotes_BTCUSD_20260126
["timestamp","ask_amount","ask_price","bid_price","bid_amount"]
[1769389443688,0.01148659,87058.0,87045.0,1.05703533]
[1769389444106,0.01148646,87059.0,87045.0,1.05703533]
[1769389444556,0.01148659,87058.0,87045.0,1.05703533]
[1769389444790,0.01,87045.0,87029.0,0.19982174]
[1769389444992,0.98461748,87045.0,87030.0,0.01859366]
[1769389445214,0.97461748,87038.0,87009.0,0.19982174]
[1769389445434,0.43261352,87040.0,87009.0,0.19982174]
[1769389445435,0.97461748,87034.0,87012.0,0.01149266]
[1769389445661,0.08158535,87045.0,87010.0,0.01744864]
[1769389445662,0.19482086,87045.0,87022.0,1.01378318]
[1769389445886,0.19482086,87045.0,87026.0,1.00229184]
[1769389446112,0.19482086,87045.0,87027.0,0.22071252]
[1769389446338,0.01148646,87059.0,87036.0,0.01148949]
[1769389446560,0.01148646,87059.0,87039.0,1.00229184]
[1769389446782,0.01148646,87059.0,87041.0,0.19982174]
[1769389446996,0.97461748,87058.0,87042.0,0.02088973]
[1769389447268,0.97461748,87064.0,87044.0,0.19982174]
[1769389447498,0.09154776,87075.0,87050.0,1.01377949]
[1769389447499,0.17648,87073.0,87050.0,1.01377949]
[1769389447713,0.76000851,87072.0,87053.0,0.19982174]
[1769389448144,0.14629784,87075.0,87053.0,0.19982174]
[1769389448145,0.01148514,87069.0,87053.0,0.19982174]
[1769389448349,0.76000851,87069.0,87053.0,0.19982174]
[1769389448752,0.76000851,87069.0,87053.0,0.21130899]
[1769389448956,0.14629784,87075.0,87059.0,0.19982174]
[1769389449107,0.76000851,87076.0,87059.0,0.19982174]
[1769389449307,0.149807,87081.0,87061.0,1.00229184]
[1769389449544,0.04150574,87080.0,87063.0,0.19982174]
[1769389449746,0.90981551,87079.0,87063.0,0.19982174]
[1769389450111,0.80151425,87078.0,87063.0,0.19982174]
[1769389450533,0.76000851,87077.0,87063.0,0.19982174]
[1769389451362,0.76000851,87077.0,87058.0,0.19982174]
[1769389451566,0.76000851,87077.0,87059.0,0.19982174]
[1769389452000,0.76000851,87077.0,87059.0,0.20597521]
[1769389452206,0.76000851,87077.0,87059.0,0.19982174]
[1769389452436,0.76000851,87077.0,87060.0,0.00730403]
[1769389452572,0.14994753,87079.0,87060.0,0.00730403]
[1769389452573,0.76000851,87070.0,87060.0,0.00130403]
[1769389452778,0.00730403,87060.0,87047.0,0.19982174]
[1769389452985,0.00730403,87060.0,87048.0,0.21245697]
[1769389453183,0.75871752,87062.0,87048.0,0.21245697]
[1769389453384,0.1488233,87069.0,87048.0,0.01263523]
[1769389453385,0.75871752,87068.0,87048.0,0.01263523]
[1769389453607,0.75871752,87068.0,87050.0,0.01148765]
[1769389453924,0.75871752,87068.0,87053.0,0.19982174]
[1769389454127,0.75871752,87068.0,87054.0,0.21245609]
[1769389454292,0.75871752,87068.0,87054.0,0.22394321]
[1769389454493,0.5546983,87068.0,87054.0,0.22394321]
[1769389454999,0.5546983,87068.0,87054.0,0.21245609]
[1769389455322,0.5546983,87068.0,87054.0,0.19982174]
[1769389456451,0.00014053,87079.0,87055.0,0.01140683]
[1769389456663,0.00014053,87079.0,87068.0,0.00730403]
[1769389456873,0.00014053,87079.0,87061.0,0.01148619]
[1769389456874,0.55673849,87078.0,87063.0,0.19943112]
[1769389457083,0.00014053,87079.0,87063.0,0.19943112]
[1769389457084,0.00014053,87079.0,87064.0,1.01538764]
[1769389457227,0.00014053,87079.0,87065.0,0.21091679]
[1769389457433,0.00014053,87079.0,87064.0,1.00390184]
[1769389457434,0.00014053,87079.0,87066.0,0.22240219]
[1769389457853,0.00014053,87079.0,87069.0,0.01148514]
[1769389458054,7.027e-05,87079.0,87074.0,0.99241604]
[1769389458243,0.0003652,87087.0,87077.0,0.19943112]
[1769389458434,0.0003652,87087.0,87079.0,0.19943112]
[1769389458848,0.0003652,87087.0,87074.0,0.01148448]
[1769389458849,0.0002,87108.0,87085.0,0.19943112]
[1769389459043,0.0002,87108.0,87091.0,0.19943112]
[1769389459330,0.0002,87108.0,87096.0,0.19943112]
[1769389460271,0.0002,87108.0,87097.0,0.99241604]
[1769389460487,0.0002,87108.0,87104.0,0.99241604]
[1769389460683,0.0002,87108.0,87083.0,0.22966473]
[1769389460684,0.0002,87108.0,87099.0,0.19943112]
[1769389460875,0.0002,87108.0,87100.0,0.19943112]
[1769389460876,0.01,87104.0,87100.0,0.19943112]
[1769389461038,0.01,87104.0,87102.0,0.19943112]
[1769389461246,0.0002,87108.0,87102.0,0.19943112]
[1769389461647,0.4224832,87119.0,87102.0,0.19943112]
[1769389461988,0.43261352,87130.0,87100.0,0.01148105]
[1769389461989,0.1646359,87135.0,87110.0,0.19943112]
[1769389462178,0.1646359,87135.0,87103.0,0.04596]
[1769389462179,0.44583194,87134.0,87114.0,0.19943112]
[1769389462443,0.44583194,87132.0,87115.0,0.01147907]
[1769389462690,0.1646359,87135.0,87115.0,0.19943112]
[1769389462878,0.44583194,87128.0,87115.0,0.19943112]
[1769389463085,0.44583194,87128.0,87108.0,0.99241604]
[1769389463243,0.44583194,87134.0,87110.0,0.99241604]
[1769389463423,0.00014053,87128.0,87115.0,0.01147907]
[1769389463631,0.00014053,87128.0,87116.0,1.00389498]
[1769389463905,0.00014053,87128.0,87117.0,0.19943112]
[1769389464113,0.00014053,87128.0,87117.0,0.21090993]
[1769389464310,0.00014053,87128.0,87110.0,0.01147973]
[1769389464311,0.0004318,87139.0,87124.0,0.01147789]
[1769389464530,0.0004318,87139.0,87130.0,0.99241604]
[1769389464711,0.29494019,87143.0,87131.0,0.19943112]
[1769389464877,0.29494019,87143.0,87131.0,0.18943112]
[1769389465073,0.09149235,87160.0,87131.0,0.18943112]
[1769389465074,0.01147433,87151.0,87131.0,0.19943112]
[1769389465318,0.01147539,87143.0,87130.0,0.00014053]
[1769389465492,0.30641558,87143.0,87130.0,0.00014053]
[1769389465695,0.29494019,87143.0,87130.0,0.00014053]
[1769389466062,0.05298007,87151.0,87130.0,0.00014053]
[1769389466063,0.02147381,87155.0,87143.0,0.01]
[1769389466313,0.1139481,87154.0,87143.0,0.00842696]
[1769389466548,0.01,87155.0,87143.0,0.00842696]
[1769389466802,0.11389026,87154.0,87144.0,0.98712727]
[1769389467007,0.01,87155.0,87145.0,0.19943112]
[1769389467450,0.30800548,87153.0,87132.0,0.01147683]
[1769389467683,0.30800548,87148.0,87131.0,0.19943112]
[1769389467901,0.18790369,87155.0,87131.0,0.19943112]
[1769389468113,0.18790369,87155.0,87130.0,0.00014053]
[1769389468114,0.01,87155.0,87138.0,0.19943112]
[1769389469007,0.01814322,87162.0,87144.0,1.00389129]
[1769389469241,0.01814322,87162.0,87139.0,0.01147591]
[1769389469242,0.11379672,87161.0,87147.0,0.19943112]
[1769389469467,0.01814322,87162.0,87154.0,0.01147394]
[1769389469687,0.01814322,87162.0,87161.0,0.00745346]
[1769389469947,0.01814322,87162.0,87149.0,0.0114746]
[1769389470155,0.17767356,87185.0,87166.0,0.19943112]
[1769389470312,0.0002,87195.0,87179.0,0.99241604]
[1769389470544,0.0002,87195.0,87182.0,0.19943112]
[1769389470694,0.01,87182.0,87170.0,0.19943112]
[1769389470894,0.01046845,87182.0,87171.0,0.19943112]
[1769389471488,0.01046845,87182.0,87161.0,0.99241604]
[1769389471489,0.01046845,87182.0,87161.0,1.00388906]
[1769389471845,0.01046845,87182.0,87165.0,0.21090361]
[1769389472173,0.01046845,87182.0,87160.0,0.05736545]
[1769389472174,0.0004526,87194.0,87180.0,0.19943112]
[1769389472306,0.01206174,87194.0,87174.0,0.19603112]
[1769389472489,0.0114692,87190.0,87174.0,0.19603112]
[1769389472688,0.01146959,87187.0,87174.0,0.19603112]
[1769389472934,0.01146959,87187.0,87158.0,0.0573669]
[1769389472935,0.01147117,87175.0,87158.0,0.19943112]
[1769389473139,0.02477182,87200.0,87161.0,0.22106316]
[1769389473140,0.08389159,87185.0,87161.0,0.22106316]
[1769389473336,0.22996842,87194.0,87170.0,0.20959014]
[1769389473337,0.01146907,87191.0,87170.0,0.20959014]
[1769389473511,0.01146907,87191.0,87169.0,0.2210621]
[1769389473730,0.01206174,87194.0,87172.0,0.20959014]
[1769389474073,0.01206174,87194.0,87174.0,0.20959014]
[1769389474205,0.00059307,87194.0,87176.0,0.20959014]
[1769389474413,0.00059307,87194.0,87178.0,0.20959014]
[1769389474608,0.00059307,87194.0,87165.0,0.22944934]
[1769389474609,0.01146959,87187.0,87163.0,0.20959014]
[1769389474814,0.01146986,87185.0,87163.0,0.20959014]
[1769389475019,0.00059307,87194.0,87163.0,0.20959014]
[1769389475020,0.01147078,87178.0,87163.0,0.20959014]
[1769389475310,0.08389159,87186.0,87163.0,0.20959014]
[1769389475311,0.01147091,87177.0,87163.0,0.20959014]
[1769389475482,0.01147038,87181.0,87163.0,0.20959014]
[1769389475725,0.04150574,87185.0,87163.0,0.20959014]
[1769389475726,0.05735553,87176.0,87163.0,0.20959014]
[1769389475843,0.01147196,87169.0,87156.0,0.00156792]
[1769389476046,0.91029806,87172.0,87153.0,0.01419743]
[1769389476476,0.92176963,87172.0,87153.0,0.01419743]
[1769389476656,0.01147223,87167.0,87153.0,0.01419743]
[1769389476860,0.01147262,87164.0,87153.0,0.01419743]
[1769389477059,0.01147341,87158.0,87132.0,0.20959014]
[1769389477348,0.01147315,87160.0,87133.0,0.00042112]
[1769389477349,0.87849283,87145.0,87133.0,0.00042112]
[1769389477586,0.02028114,87146.0,87128.0,0.00156885]
[1769389477847,0.1837101,87150.0,87128.0,0.0020373]
[1769389478046,0.02028114,87152.0,87129.0,0.20959014]
[1769389478250,0.02028114,87152.0,87124.0,1.09118608]
[1769389478251,0.02974029,87138.0,87117.0,0.20959014]
[1769389478473,0.01826425,87138.0,87117.0,0.20973067]
[1769389478822,0.01147473,87148.0,87119.0,1.09118608]
[1769389478976,0.01147565,87141.0,87120.0,0.20959014]
[1769389479231,0.01147552,87142.0,87120.0,0.20959014]
[1769389479641,0.05737572,87145.0,87120.0,0.20959014]
[1769389479642,0.01826425,87147.0,87121.0,0.01147828]
[1769389479977,0.01826425,87147.0,87126.0,0.01147763]
[1769389480118,0.01147591,87139.0,87126.0,0.01262572]
[1769389480319,0.01826425,87141.0,87118.0,0.02410455]
[1769389480559,0.01147578,87140.0,87119.0,0.20959014]
[1769389480873,0.01147578,87140.0,87120.0,0.01262571]
[1769389480874,0.0114767,87133.0,87120.0,0.01262571]
[1769389481072,0.0114767,87133.0,87117.0,0.00014053]
[1769389481267,0.01147789,87124.0,87117.0,0.00014053]
[1769389481456,0.01147881,87117.0,87103.0,0.25551014]
[1769389481770,0.00014037,87117.0,87103.0,0.25551014]
[1769389482235,0.00014037,87117.0,87104.0,0.01148052]
[1769389482434,0.18247794,87127.0,87106.0,0.01148026]
[1769389482636,0.00844532,87128.0,87109.0,0.01147987]
[1769389482838,0.01147631,87136.0,87113.0,0.22106948]
[1769389483121,0.0114767,87133.0,87113.0,0.20959014]
[1769389483316,0.01147631,87136.0,87113.0,0.20959014]
[1769389483650,0.00844532,87135.0,87113.0,0.20959014]
[1769389483883,0.00844532,87135.0,87114.0,0.00114784]
[1769389484114,0.04592,87148.0,87116.0,0.22106908]
[1769389484313,0.00844532,87144.0,87121.0,0.20959014]
[1769389484519,0.01147486,87147.0,87124.0,0.20959014]
[1769389484714,0.0114746,87149.0,87128.0,0.20959014]
[1769389484871,0.00844532,87151.0,87133.0,0.0114767]
[1769389485069,0.00844532,87151.0,87131.0,0.01147697]
[1769389485275,0.00844532,87151.0,87130.0,0.0114771]
[1769389485486,0.00844532,87151.0,87131.0,0.01147697]
[1769389485836,0.00844532,87151.0,87128.0,1.09118608]
[1769389485837,0.01147341,87158.0,87135.0,0.22106658]
[1769389486045,0.00046845,87158.0,87138.0,0.01147604]
[1769389486191,0.00046845,87158.0,87139.0,0.01020898]
[1769389486391,0.00046845,87158.0,87141.0,0.01147565]
[1769389486643,0.00046845,87158.0,87142.0,0.02283578]
[1769389487337,0.00046845,87158.0,87147.0,0.01147486]
[1769389487561,0.00046845,87158.0,87148.0,0.02197791]
[1769389487767,0.00046845,87158.0,87149.0,0.02283433]
[1769389487972,0.00046845,87158.0,87149.0,0.01485145]
[1769389488188,0.00014037,87149.0,87130.0,0.0114771]
[1769389488357,0.00014037,87149.0,87128.0,0.01147736]
[1769389488358,0.00014037,87149.0,87131.0,0.01600221]
[1769389488562,0.00014037,87149.0,87130.0,0.01600221]
[1769389488761,0.00014037,87149.0,87131.0,0.01147697]
[1769389488969,0.00014037,87149.0,87132.0,0.01600184]
[1769389489369,0.00014037,87149.0,87133.0,0.02295341]
[1769389489575,0.00014037,87149.0,87129.0,0.20959014]
[1769389489576,0.00014037,87149.0,87130.0,0.0229542]
[1769389489771,0.86665701,87148.0,87130.0,0.0229542]
[1769389490138,0.86665701,87148.0,87130.0,0.0344313]
[1769389490387,0.86665701,87148.0,87130.0,0.0229542]
[1769389490581,0.18447903,87152.0,87130.0,0.0229542]
[1769389490815,0.86665701,87151.0,87130.0,0.0229542]
[1769389491036,0.86665701,87151.0,87131.0,0.01147697]
[1769389491217,0.86665701,87151.0,87133.0,0.0114767]
[1769389491422,0.00866657,87156.0,87135.0,0.01147644]
[1769389491628,0.05164463,87155.0,87134.0,0.24401986]
[1769389491831,0.0603112,87155.0,87135.0,0.03080768]
[1769389491977,0.0603112,87155.0,87136.0,0.01147631]
[1769389492178,0.00866657,87155.0,87138.0,0.01147604]
[1769389492383,0.00866657,87155.0,87137.0,0.01245262]
[1769389492384,0.00866657,87155.0,87139.0,0.01245233]
[1769389492785,0.00866657,87155.0,87134.0,0.20959014]
[1769389493080,0.00866657,87155.0,87135.0,0.02368268]
[1769389493281,0.00866657,87155.0,87136.0,0.01147631]
[1769389493645,0.00866657,87147.0,87124.0,0.01147789]
[1769389493804,0.44280606,87150.0,87123.0,0.20959014]
[1769389493805,0.18322686,87144.0,87123.0,0.20959014]
[1769389494015,0.18322686,87144.0,87112.0,0.17628]
[1769389494016,0.01147644,87135.0,87112.0,0.20959014]
[1769389494237,0.01147644,87135.0,87109.0,0.01147987]
[1769389494238,0.00866657,87124.0,87113.0,0.01106245]
[1769389494451,0.01147828,87121.0,87106.0,0.04592]
[1769389494650,0.19439334,87124.0,87106.0,0.04592]
[1769389494852,0.00866657,87121.0,87106.0,0.04592]
[1769389495439,0.00866657,87121.0,87099.0,0.0004526]
[1769389495440,0.18710172,87118.0,87099.0,0.0004526]
[1769389495699,0.01161908,87118.0,87099.0,0.0004526]
[1769389495821,0.00852761,87109.0,87099.0,0.0004526]
[1769389496664,0.18710172,87116.0,87099.0,0.0004526]
[1769389496931,0.00852761,87115.0,87099.0,0.0004526]
[1769389497259,0.00535321,87115.0,87099.0,0.0004526]
[1769389497877,0.0001404,87118.0,87116.0,0.00985963]
[1769389498309,0.0001404,87118.0,87117.0,0.02295763]
[1769389499245,0.0001404,87118.0,87111.0,0.02249645]
[1769389499721,0.0001404,87118.0,87111.0,0.03397605]
[1769389499906,0.00100089,87115.0,87111.0,0.23208659]
[1769389500362,0.00100089,87115.0,87111.0,0.24356619]
[1769389500503,0.04150574,87133.0,87113.0,0.20959014]
[1769389500706,0.11427441,87132.0,87114.0,0.03443763]
[1769389500888,0.04150574,87131.0,87114.0,0.02295842]
[1769389501095,0.00552395,87136.0,87116.0,0.01147894]
[1769389501298,0.1557799,87135.0,87117.0,0.02126699]
[1769389501505,0.00552395,87147.0,87126.0,0.01147763]
[1769389501785,0.11429022,87146.0,87132.0,0.01147683]
[1769389501933,0.11429022,87145.0,87133.0,0.23254355]
[1769389502136,0.11429022,87144.0,87133.0,0.23254355]
[1769389502360,0.11429022,87143.0,87133.0,0.23254355]
[1769389502561,0.00014045,87147.0,87137.0,0.01147618]
[1769389502819,0.00014045,87147.0,87134.0,0.01147657]
[1769389502820,0.11433303,87146.0,87136.0,0.01147631]
[1769389503018,0.11433303,87145.0,87141.0,0.01147565]
[1769389503216,0.00014045,87147.0,87140.0,0.01147578]
[1769389503506,0.11437171,87146.0,87140.0,0.01147578]
[1769389503622,0.00014045,87147.0,87146.0,0.06623371]
[1769389503825,0.18925505,87177.0,87158.0,0.01147341]
[1769389504028,0.23122886,87177.0,87161.0,0.01147302]
[1769389504289,0.04150574,87176.0,87155.0,0.01147381]
[1769389504449,0.04150574,87176.0,87115.0,0.45916139]
[1769389504450,0.05334895,87174.0,87148.0,0.01147473]
[1769389504659,0.01013889,87173.0,87156.0,0.01147367]
[1769389504853,0.05334895,87174.0,87155.0,0.01147381]
[1769389505201,0.05334895,87174.0,87153.0,0.28303983]
[1769389505202,0.00046807,87177.0,87153.0,0.21419548]
[1769389505401,0.00046807,87177.0,87164.0,0.21419548]
[1769389505545,0.00046807,87177.0,87164.0,0.0573629]
[1769389505751,0.00046807,87177.0,87171.0,0.0114717]
[1769389505947,0.13705996,87191.0,87180.0,0.01147052]
[1769389506147,0.0004526,87194.0,87191.0,0.01146907]
[1769389506372,0.02477182,87200.0,87184.0,0.21419548]
[1769389506373,0.02477182,87200.0,87189.0,0.01146933]
[1769389506603,0.02477182,87200.0,87195.0,0.01146854]
[1769389506764,0.02477182,87200.0,87197.0,0.01146828]
[1769389506964,0.02477182,87200.0,87196.0,0.01146841]
[1769389506965,0.13997926,87213.0,87201.0,0.01146775]
[1769389507282,0.01013889,87212.0,87200.0,0.00839066]
[1769389507444,0.0029193,87213.0,87199.0,0.21419548]
[1769389508053,0.00114127,87199.0,87179.0,0.01147065]
[1769389508297,0.07304332,87198.0,87182.0,0.01147025]
[1769389508553,0.01013889,87197.0,87179.0,0.00046807]
[1769389508760,0.07304332,87196.0,87179.0,0.00046807]
[1769389508968,0.4313316,87200.0,87179.0,0.00031271]
[1769389508969,0.07304332,87192.0,87179.0,0.00031271]
[1769389509163,0.01146881,87193.0,87165.0,0.26011548]
[1769389509164,0.00031271,87179.0,87165.0,0.26011548]
[1769389509409,0.00031271,87179.0,87165.0,0.2146641]
[1769389509606,0.07273374,87188.0,87165.0,0.2146641]
[1769389509920,0.01146999,87184.0,87165.0,0.2146641]
[1769389510149,0.01013889,87183.0,87165.0,0.2146641]
[1769389510352,0.01013889,87193.0,87171.0,0.0114717]
[1769389510485,0.08287263,87193.0,87166.0,0.21419548]
[1769389510702,0.01146959,87187.0,87166.0,0.21419548]
[1769389510898,0.01013889,87186.0,87166.0,0.21419548]
[1769389511120,0.2100276,87192.0,87166.0,0.21419548]
[1769389511121,0.2100276,87192.0,87168.0,0.01147209]
[1769389511322,0.01147012,87183.0,87166.0,0.21419548]
[1769389511535,0.39106501,87220.0,87165.0,0.00046862]
[1769389511536,0.0573563,87175.0,87165.0,0.00046862]
[1769389511886,0.00114127,87166.0,87147.0,0.04592]
[1769389512010,0.89118172,87193.0,87173.0,0.01147144]
[1769389512208,0.05605889,87192.0,87172.0,0.01147157]
[1769389512431,0.05605889,87192.0,87170.0,0.21419548]
[1769389512670,0.06752783,87192.0,87170.0,1.21056523]
[1769389513035,0.0114692,87190.0,87168.0,0.01147209]
[1769389513227,0.07226981,87191.0,87168.0,0.01147209]
[1769389513228,0.01013889,87189.0,87170.0,0.01147183]
[1769389513451,0.01146999,87184.0,87158.0,0.01147341]
[1769389513652,0.89118172,87177.0,87153.0,0.01147407]
[1769389513828,0.0114717,87171.0,87150.0,0.21419548]
[1769389514031,0.09388053,87170.0,87150.0,0.21419548]
[1769389514271,0.0824087,87170.0,87150.0,0.22566994]
[1769389514505,0.0824087,87170.0,87150.0,0.21419548]
[1769389514704,0.0824087,87170.0,87150.0,0.22566994]
[1769389514987,0.01147223,87167.0,87147.0,0.00046946]
[1769389515145,0.07226981,87166.0,87147.0,0.00046946]
[1769389515348,0.01013889,87173.0,87150.0,0.01147446]
[1769389515549,0.06311567,87176.0,87151.0,0.21419548]
[1769389515748,0.01013889,87176.0,87156.0,0.01147367]
[1769389516044,0.01013889,87181.0,87159.0,0.21419548]
[1769389516272,0.01147012,87183.0,87160.0,0.01147315]
[1769389516273,0.01013889,87182.0,87160.0,0.01147315]
[1769389516477,0.01147038,87181.0,87161.0,0.01218011]
[1769389516667,0.06311488,87182.0,87161.0,0.01147302]
[1769389516924,0.05735609,87175.0,87162.0,0.00073]
[1769389517099,0.01147157,87172.0,87149.0,0.0114746]
[1769389517271,0.06092989,87171.0,87149.0,0.0114746]
[1769389517468,0.01147315,87160.0,87147.0,0.00046946]
[1769389517726,0.01147354,87157.0,87135.0,0.21534038]
[1769389517928,0.01147367,87156.0,87135.0,0.21581002]
[1769389518075,0.20526388,87163.0,87141.0,0.01147565]
[1769389518271,0.44280343,87170.0,87143.0,0.01147539]
[1769389518272,0.06046513,87166.0,87143.0,0.01147539]
[1769389518500,0.21673545,87172.0,87147.0,0.01147486]
[1769389518747,0.21673545,87172.0,87135.0,0.00046964]
[1769389518748,0.01147275,87163.0,87143.0,0.21534038]
[1769389518960,0.05736059,87168.0,87143.0,0.21534038]
[1769389518961,0.06046513,87168.0,87149.0,0.0114746]
[1769389519135,0.07193604,87177.0,87151.0,0.01147433]
[1769389519288,0.07193604,87177.0,87149.0,0.0114746]
[1769389519289,0.06046513,87165.0,87143.0,0.01147539]
[1769389519493,0.06046513,87165.0,87142.0,0.01147552]
[1769389519714,0.06883709,87163.0,87136.0,0.01147631]
[1769389519917,0.01147367,87156.0,87135.0,0.00046964]
[1769389520149,0.01147367,87156.0,87120.0,0.04588]
[1769389520150,0.00046964,87135.0,87120.0,0.04588]
[1769389520356,0.00046964,87135.0,87126.0,0.00092308]
[1769389520570,0.10729606,87139.0,87126.0,0.00092308]
[1769389520762,0.0114746,87149.0,87126.0,0.00092308]
[1769389520763,0.01147473,87148.0,87126.0,0.00092308]
[1769389520959,0.05298034,87149.0,87126.0,0.00092308]
[1769389520960,0.01147539,87143.0,87126.0,0.00092308]
[1769389521163,0.10729606,87153.0,87126.0,0.00092308]
[1769389521164,0.10729606,87153.0,87128.0,0.01147736]
[1769389521368,0.01147381,87155.0,87133.0,0.0114767]
[1769389521569,0.10729606,87163.0,87136.0,0.01147631]
[1769389521818,0.04150574,87169.0,87126.0,1.06251235]
[1769389521819,0.9783117,87151.0,87126.0,0.00092308]
[1769389522052,0.9783117,87151.0,87126.0,0.01240071]
[1769389522053,0.01147473,87148.0,87126.0,0.01240071]
[1769389522268,0.9783117,87151.0,87130.0,0.0114771]
[1769389522269,0.90946541,87151.0,87130.0,0.0114771]
[1769389522568,0.01147446,87150.0,87126.0,0.00092308]
[1769389522763,0.11877052,87150.0,87128.0,0.01147736]
[1769389523087,0.11877052,87150.0,87128.0,0.01220979]
[1769389523278,0.10729606,87150.0,87128.0,0.01220979]
[1769389523451,0.10729606,87150.0,87129.0,0.01147723]
[1769389523656,0.11877052,87150.0,87128.0,0.00073243]
[1769389523852,0.05736858,87156.0,87128.0,0.00073243]
[1769389523853,0.44280475,87160.0,87134.0,0.06885933]
[1769389524057,0.11876908,87161.0,87138.0,0.01147604]
[1769389524263,0.11876908,87161.0,87139.0,0.00073233]
[1769389524264,0.12504367,87161.0,87139.0,0.00073233]
[1769389524523,0.02159335,87160.0,87140.0,0.01147578]
[1769389524692,0.02159335,87162.0,87142.0,0.01147552]
[1769389524891,0.02159335,87162.0,87140.0,0.22681616]
[1769389525094,0.02159335,87163.0,87143.0,0.01147539]
[1769389525317,0.02159335,87162.0,87144.0,0.22869397]
[1769389525552,0.01147249,87165.0,87144.0,0.21534038]
[1769389525756,0.02159335,87164.0,87144.0,0.21721872]
[1769389525895,0.02159335,87164.0,87145.0,0.00187832]
[1769389526101,0.02159335,87166.0,87146.0,0.0018783]
[1769389526422,0.02159335,87171.0,87150.0,0.01147446]
[1769389526584,0.01147157,87172.0,87151.0,0.21721854]
[1769389526788,0.01147131,87174.0,87152.0,0.0114742]
[1769389526985,0.01147117,87175.0,87153.0,0.00187811]
[1769389527187,0.02159335,87174.0,87154.0,0.01147394]
[1769389527386,0.02159335,87175.0,87154.0,0.01147394]
[1769389527587,0.10729606,87181.0,87155.0,0.22681419]
[1769389527588,0.02159335,87174.0,87155.0,0.22681419]
[1769389527829,0.02159335,87179.0,87158.0,0.21534038]
[1769389528004,0.02159335,87179.0,87158.0,0.01147341]
[1769389528213,0.02159335,87184.0,87159.0,0.21534038]
[1769389528630,0.0573534,87179.0,87159.0,0.21534038]
[1769389528833,0.10729606,87175.0,87158.0,0.00047048]
[1769389529052,0.01147236,87166.0,87158.0,0.00047048]
[1769389529238,0.02159335,87165.0,87158.0,0.00047048]
[1769389529441,0.02159335,87169.0,87158.0,0.00047048]
[1769389529769,0.01147236,87166.0,87158.0,0.00047048]
[1769389529919,0.02159335,87165.0,87158.0,0.00047048]
[1769389530121,0.02159335,87174.0,87165.0,0.00885873]
[1769389530328,0.02159335,87180.0,87165.0,0.00885873]
[1769389530531,0.02159335,87182.0,87165.0,0.00885873]
[1769389530727,0.01147065,87179.0,87165.0,0.00885873]
[1769389530932,0.01147012,87183.0,87165.0,0.00885873]
[1769389531151,0.01147078,87178.0,87165.0,0.00885873]
[1769389531492,0.01147052,87180.0,87165.0,0.00885873]
[1769389531667,0.20633684,87189.0,87165.0,0.00885873]
[1769389531668,0.01146973,87186.0,87165.0,0.00885873]
[1769389531925,0.01147012,87183.0,87165.0,0.00885873]
[1769389532102,0.00107296,87189.0,87165.0,0.00885873]
[1769389532256,0.05738894,87192.0,87165.0,0.00885873]
[1769389532257,0.05738894,87192.0,87167.0,1.0730615]
[1769389532461,0.01146828,87197.0,87174.0,0.01147131]
[1769389532661,0.01781552,87198.0,87172.0,0.21534038]
[1769389532662,0.01146907,87191.0,87172.0,0.21534038]
[1769389532876,0.01146894,87192.0,87172.0,0.21534038]
[1769389533212,0.01146881,87193.0,87173.0,0.21534038]
[1769389533511,0.01146933,87189.0,87173.0,0.21534038]
[1769389533840,0.01146999,87184.0,87173.0,0.21534038]
[1769389534133,0.01146999,87184.0,87160.0,0.06883889]
[1769389534134,0.01147052,87180.0,87165.0,0.20495063]
[1769389534325,0.01147052,87180.0,87155.0,0.01147381]
[1769389534326,0.01147065,87179.0,87156.0,0.02232915]
[1769389534709,0.01781552,87184.0,87156.0,0.02232915]
[1769389534906,0.08769751,87227.0,87155.0,0.20495063]
[1769389534907,0.01147144,87173.0,87155.0,0.22727986]
[1769389535106,0.01147131,87174.0,87155.0,0.20495063]
[1769389535328,0.0114717,87171.0,87147.0,0.01147486]
[1769389535520,0.01147209,87168.0,87147.0,0.0223312]
[1769389535723,0.0114717,87171.0,87149.0,0.0114746]
[1769389535934,0.0114717,87171.0,87149.0,0.02233174]
[1769389536131,0.01147196,87169.0,87148.0,0.01147473]
[1769389536333,0.01147183,87170.0,87147.0,0.02233174]
[1769389536503,0.01147183,87170.0,87147.0,0.0338066]
[1769389536703,0.01147196,87169.0,87147.0,0.0338066]
[1769389537108,0.01147183,87170.0,87147.0,0.0338066]
[1769389537315,0.0114717,87171.0,87149.0,0.0114746]
[1769389537533,0.0114717,87171.0,87149.0,0.03056584]
[1769389537920,0.01147157,87172.0,87150.0,0.01147446]
[1769389538270,0.01147209,87168.0,87153.0,0.20495063]
[1769389538499,0.01147196,87169.0,87153.0,0.20495063]
[1769389538851,0.01147183,87170.0,87153.0,0.20495063]
[1769389539460,0.01147144,87173.0,87153.0,0.20495063]
[1769389539664,0.01147144,87173.0,87153.0,1.28940792]
[1769389539863,0.01147117,87175.0,87153.0,1.28940792]
[1769389540263,0.02139145,87177.0,87155.0,0.01147381]
[1769389540490,0.01146959,87187.0,87158.0,0.01194389]
[1769389540710,0.01146999,87184.0,87163.0,0.20495063]
[1769389541266,0.01146986,87185.0,87163.0,0.20495063]
[1769389541470,0.01147012,87183.0,87163.0,0.20495063]
[1769389541695,0.01147025,87182.0,87163.0,0.20495063]
[1769389542208,0.01147091,87177.0,87164.0,0.02232518]
[1769389542372,0.01147131,87174.0,87164.0,0.02232518]
[1769389542569,0.01147144,87173.0,87164.0,0.02232518]
[1769389542770,0.0114717,87171.0,87158.0,0.02279598]
[1769389542994,0.01147223,87167.0,87158.0,0.00047048]
[1769389543196,0.01147209,87168.0,87158.0,0.00047048]
[1769389543403,0.07875787,87159.0,87158.0,1e-08]
[1769389543598,0.03286276,87174.0,87147.0,0.01147486]
[1769389543772,0.01147209,87168.0,87159.0,0.00885873]
[1769389543974,0.01147223,87167.0,87159.0,0.00885873]
[1769389544175,0.01147223,87167.0,87148.0,0.20495063]
[1769389544373,0.0114717,87171.0,87148.0,0.20495063]
[1769389544578,0.01147183,87170.0,87148.0,0.20495063]
[1769389544801,0.01147157,87172.0,87150.0,0.21642509]
[1769389545020,0.01194017,87174.0,87151.0,0.21642496]
[1769389545172,0.00046886,87174.0,87155.0,1.14182623]
[1769389545379,0.00046886,87174.0,87156.0,0.01955399]
[1769389545380,0.04634886,87174.0,87156.0,0.01955399]
[1769389545970,0.00046886,87174.0,87156.0,0.22450462]
[1769389546168,0.00046886,87174.0,87158.0,0.20495063]
[1769389546374,0.00046886,87174.0,87161.0,1.08445729]
[1769389546634,0.04150574,87184.0,87162.0,0.20495063]
[1769389546782,0.03286276,87174.0,87162.0,0.00046886]
[1769389547213,0.01147131,87174.0,87162.0,0.00046886]
[1769389547414,0.0002334,87204.0,87166.0,0.01147236]
[1769389547609,0.0002334,87204.0,87162.0,0.00046886]
[1769389547610,0.94590123,87197.0,87174.0,0.00932921]
[1769389547861,0.19733321,87199.0,87174.0,0.00932921]
[1769389547862,0.11455976,87196.0,87174.0,0.00932921]
[1769389548022,0.19733321,87199.0,87179.0,0.01147065]
[1769389548230,0.03321824,87201.0,87181.0,0.01147038]
[1769389548431,0.03321824,87201.0,87160.0,0.43104679]
[1769389548432,0.03321824,87201.0,87180.0,0.01147052]